Workbook

Sheet Титульник
A1: Утверждаю
A2: Директор ОГБПОУ "ДМК"
A5: И.А.Казаченко | O5: УЧЕБНЫЙ ПЛАН
O7: программы подготовки специалистов среднего звена
A10: Приказ № 39-у от 28.02.2025 г.
O11: Областное государственное бюджетное профессиональное образовательное учреждение "Димитровградский музыкальный колледж"
A13: Рассмотрено Педагогическим Советом Протокол № 04 от 26.02.2025
O15: наименование образовательного учреждения (организации)
O18: по специальности среднего профессионального образования
O20: 53.02.03 | U20: Инструментальное исполнительство (по видам инструментов) Оркестровые духовые и ударные инструменты (флейта, гобой, кларнет, фагот, труба, валторна, тромбон (возможно туба, тенор, баритон, саксофон), ударные инструменты)
O21: код | U21: наименование специальности
O22: по программе углубленной подготовки | AE22: на базе | AI22: основного общего образования
O24: квалификация | U24: Артист, преподаватель
O26: форма обучения | U26: Очная
O28: нормативный срок освоения ППССЗ | AB28: 3г 10м | AI28: год начала подготовки по УП | AS28: 2025
O30: профиль получаемого профессионального образования | AI30: Искусство и культура 53.00.00 Музыкальное искусство
AI31: при реализации программы среднего (полного) общего образования
O33: Приказ об утверждении ФГОС | Z33: от | AB33: 2021-05-17 | AG33: № | AI33: 253

Sheet сводные данные по бюджет времен
A1: 2 Сводные данные по бюджету времени
A2: Курс | B2: Обучение по дисциплинам и междисциплинарным курсам | T2: Промежуточная аттестация | AC2: Практики | AT2: ГИА | AZ2: Каникулы | BC2: Всего
AC3: Учебная практика | AF3: Производственная практика (по профилю специальности) | AM3: Производственная практика (преддипломная) | AT3: Подго- товка | AW3: Прове- дение
B4: Всего | H4: 1 сем | N4: 2 сем | T4: Всего | W4: 1 сем | Z4: 2 сем | AC4: Всего | AF4: Всего | AI4: 1 сем | AK4: 2 сем | AM4: Всего | AP4: 1 сем | AR4: 2 сем
B5: нед. | E5: час. | H5: нед. | K5: час. | N5: нед. | Q5: час. | T5: нед. | W5: нед. | Z5: нед. | AC5: нед. | AF5: нед. | AI5: нед. | AK5: нед. | AM5: нед. | AP5: нед. | AR5: нед. | AT5: нед. | AW5: нед. | AZ5: нед. | BC5: нед.
A6: I | B6: 36 | E6: 1947/1296 | H6: 16 | K6: 866/576 | N6: 20 | Q6: 1081/720 | T6: 4 | W6: 2 | Z6: 2 | AF6: 1 | AK6: 1 | AZ6: 2 | BC6: 43
A7: II | B7: 36 | E7: 1934/1296 | H7: 16 | K7: 853/576 | N7: 20 | Q7: 1081/720 | T7: 4 | W7: 2 | Z7: 2 | AF7: 2 | AK7: 2 | AZ7: 11 | BC7: 53
A8: III | B8: 36 | E8: 1953/1296 | H8: 16 | K8: 860/576 | N8: 20 | Q8: 1093/720 | T8: 4 | W8: 2 | Z8: 2 | AF8: 2 | AK8: 2 | AZ8: 10 | BC8: 52
A9: IV | B9: 35 | E9: 1888/1260 | H9: 16 | K9: 862/576 | N9: 19 | Q9: 1026/684 | T9: 1 | W9: 1 | AM9: 1 | AP9: 1 | AT9: 1 | AW9: 3 | AZ9: 10 | BC9: 51
A10: Всего | B10: 143 | E10: 7722/5148 | K10: 3441/2304 | Q10: 4281/2844 | T10: 13 | AC10: 19 | AF10: 5 | AM10: 1 | AT10: 1 | AW10: 3 | AZ10: 33 | BC10: 199

Sheet План
A1: Индекс | B1: Наименование циклов, разделов, дисциплин, профессиональных модулей, МДК, практик | C1: Групповые, мелкогрупповые, индивидуальные формы занятий | D1: Формы промежуточной аттестации | K1: Учебная нагрузка обучающихся, ч. | U1: Распределение по курсам и семестрам | EC1: ЦМК | ED1: Максимальная учебная нагрузка
U2: Курс 1 | AI2: Курс 2 | AW2: Курс 3 | BK2: Курс 4 | BY2: Курс 5 | CM2: Курс 6 | DA2: Курс 7 | DO2: Курс 8
D3: Экзамены | E3: Зачеты | F3: Диффер. зачеты | G3: Курсовые проекты (работы) | H3: Итоговые письм. КР | I3: Домашние КР | J3: Другие формы контроля | L3: Максимальная | N3: Самостоятельная | P3: Обязательная | U3: Семестр 1 | AB3: Семестр 2 | AI3: Семестр 3 | AP3: Семестр 4 | AW3: Семестр 5 | BD3: Семестр 6 | BK3: Семестр 7 | BR3: Семестр 8 | BY3: Семестр 9 | CF3: Семестр A | CM3: Семестр B | CT3: Семестр C | DA3: Семестр D | DH3: Семестр E | DO3: Семестр F | DV3: Семестр G
P4: Всего | Q4: в том числе | U4: 16 нед | AB4: 20 нед | AI4: 16 нед | AP4: 20 нед | AW4: 16 нед | BD4: 20 нед | BK4: 16 нед | BR4: 19 нед | BY4: нед | CF4: нед | CM4: нед | CT4: нед | DA4: нед | DH4: нед | DO4: нед | DV4: нед
Q5: Теор. обучение | R5: Лаб. и пр. занятия | T5: Курс. проект. | U5: Максим. | V5: Самост. | W5: Всего | X5: в том числе | AB5: Максим. | AC5: Самост. | AD5: Всего | AE5: в том числе | AI5: Максим. | AJ5: Самост. | AK5: Всего | AL5: в том числе | AP5: Максим. | AQ5: Самост. | AR5: Всего | AS5: в том числе | AW5: Максим. | AX5: Самост. | AY5: Всего | AZ5: в том числе | BD5: Максим. | BE5: Самост. | BF5: Всего | BG5: в том числе | BK5: Максим. | BL5: Самост. | BM5: Всего | BN5: в том числе | BR5: Максим. | BS5: Самост. | BT5: Всего | BU5: в том числе | BY5: Максим. | BZ5: Самост. | CA5: Всего | CB5: в том числе | CF5: Максим. | CG5: Самост. | CH5: Всего | CI5: в том числе | CM5: Максим. | CN5: Самост. | CO5: Всего | CP5: в том числе | CT5: Максим. | CU5: Самост. | CV5: Всего | CW5: в том числе | DA5: Максим. | DB5: Самост. | DC5: Всего | DD5: в том числе | DH5: Максим. | DI5: Самост. | DJ5: Всего | DK5: в том числе | DO5: Максим. | DP5: Самост. | DQ5: Всего | DR5: в том числе | DV5: Максим. | DW5: Самост. | DX5: Всего | DY5: в том числе | ED5: Обяз. часть | EE5: Вар. часть
X6: Теор. обучение | Y6: Лаб. и пр. занятия | Z6: Лаб. занятия | AA6: Курс. проект. | AE6: Теор. обучение | AF6: Лаб. и пр. занятия | AG6: Лаб. занятия | AH6: Курс. проект. | AL6: Теор. обучение | AM6: Лаб. и пр. занятия | AN6: Лаб. занятия | AO6: Курс. проект. | AS6: Теор. обучение | AT6: Лаб. и пр. занятия | AU6: Лаб. занятия | AV6: Курс. проект. | AZ6: Теор. обучение | BA6: Лаб. и пр. занятия | BB6: Лаб. занятия | BC6: Курс. проект. | BG6: Теор. обучение | BH6: Лаб. и пр. занятия | BI6: Лаб. занятия | BJ6: Курс. проект. | BN6: Теор. обучение | BO6: Лаб. и пр. занятия | BP6: Лаб. занятия | BQ6: Курс. проект. | BU6: Теор. обучение | BV6: Лаб. и пр. занятия | BW6: Лаб. занятия | BX6: Курс. проект. | CB6: Теор. обучение | CC6: Лаб. и пр. занятия | CD6: Лаб. занятия | CE6: Курс. проект. | CI6: Теор. обучение | CJ6: Лаб. и пр. занятия | CK6: Лаб. занятия | CL6: Курс. проект. | CP6: Теор. обучение | CQ6: Лаб. и пр. занятия | CR6: Лаб. занятия | CS6: Курс. проект. | CW6: Теор. обучение | CX6: Лаб. и пр. занятия | CY6: Лаб. занятия | CZ6: Курс. проект. | DD6: Теор. обучение | DE6: Лаб. и пр. занятия | DF6: Лаб. занятия | DG6: Курс. проект. | DK6: Теор. обучение | DL6: Лаб. и пр. занятия | DM6: Лаб. занятия | DN6: Курс. проект. | DR6: Теор. обучение | DS6: Лаб. и пр. занятия | DT6: Лаб. занятия | DU6: Курс. проект. | DY6: Теор. обучение | DZ6: Лаб. и пр. занятия | EA6: Лаб. занятия | EB6: Курс. проект.
A7: 1 | B7: 2 | C7: 3 | D7: 4 | E7: 5 | F7: 6 | G7: 6 | H7: 7 | I7: 8 | J7: 7 | K7: 10 | L7: 8 | M7: 12 | N7: 9 | O7: 14 | P7: 10 | Q7: 11 | R7: 12 | S7: 18 | T7: 13 | U7: 20 | V7: 14 | W7: 15 | X7: 16 | Y7: 17 | Z7: 25 | AA7: 18 | AB7: 27 | AC7: 19 | AD7: 20 | AE7: 21 | AF7: 22 | AG7: 32 | AH7: 23 | AI7: 34 | AJ7: 24 | AK7: 25 | AL7: 26 | AM7: 27 | AN7: 39 | AO7: 28 | AP7: 41 | AQ7: 29 | AR7: 30 | AS7: 31 | AT7: 32 | AU7: 46 | AV7: 33 | AW7: 48 | AX7: 34 | AY7: 35 | AZ7: 36 | BA7: 37 | BB7: 53 | BC7: 38 | BD7: 55 | BE7: 39 | BF7: 40 | BG7: 41 | BH7: 42 | BI7: 60 | BJ7: 43 | BK7: 62 | BL7: 44 | BM7: 45 | BN7: 46 | BO7: 47 | BP7: 67 | BQ7: 48 | BR7: 69 | BS7: 49 | BT7: 50 | BU7: 51 | BV7: 52 | BW7: 74 | BX7: 53 | BY7: 76 | BZ7: 77 | CA7: 78 | CB7: 79 | CC7: 80 | CD7: 81 | CE7: 82 | CF7: 83 | CG7: 84 | CH7: 85 | CI7: 86 | CJ7: 87 | CK7: 88 | CL7: 89 | CM7: 90 | CN7: 91 | CO7: 92 | CP7: 93 | CQ7: 94 | CR7: 95 | CS7: 96 | CT7: 97 | CU7: 98 | CV7: 99 | CW7: 100 | CX7: 101 | CY7: 102 | CZ7: 103 | DA7: 104 | DB7: 105 | DC7: 106 | DD7: 107 | DE7: 108 | DF7: 109 | DG7: 110 | DH7: 111 | DI7: 112 | DJ7: 113 | DK7: 114 | DL7: 115 | DM7: 116 | DN7: 117 | DO7: 118 | DP7: 119 | DQ7: 120 | DR7: 121 | DS7: 122 | DT7: 123 | DU7: 124 | DV7: 125 | DW7: 126 | DX7: 127 | DY7: 128 | DZ7: 129 | EA7: 130 | EB7: 131 | EC7: 132 | ED7: 54 | EE7: 55
B8: час/нед | U8: 31,5 | W8: =W9/16 -> 21 | AB8: 31,5 | AD8: =AD9/20 -> 21 | AI8: 22,5 | AK8: =AK9/16 -> 15 | AP8: 22,5 | AR8: =AR9/20 -> 15 | AW8: 4,5 | AY8: =AY9/16 -> 3 | BD8: 4,5 | BF8: =BF9/20 -> 3 | BM8: =BM9/16 -> 0 | BT8: =BT9/19 -> 0 | BY8: NaN | CA8: NaN | CF8: NaN | CH8: NaN | CM8: NaN | CO8: NaN | CT8: NaN | CV8: NaN | DA8: NaN | DC8: NaN | DH8: NaN | DJ8: NaN | DO8: NaN | DQ8: NaN | DV8: NaN | DX8: NaN
A9: ОУЦ.00 | B9: Общеобразовательный учебный цикл | D9: 3 | E9: 4 | F9: 6 | J9: 14 | L9: 2106 | M9: 0 | N9: 702 | O9: 0 | P9: 1404 | Q9: 1276 | R9: 128 | U9: 504 | V9: 168 | W9: 336 | X9: 320 | Y9: 16 | AA9: 0 | AC9: 210 | AD9: 420 | AE9: 380 | AF9: 40 | AH9: 0 | AJ9: 120 | AK9: 240 | AL9: 208 | AM9: 32 | AO9: 0 | AQ9: 150 | AR9: 300 | AS9: 260 | AT9: 40 | AV9: 0 | AX9: 24 | AY9: 48 | AZ9: 48 | BA9: 0 | BC9: 0 | BE9: 30 | BF9: 60 | BG9: 60 | BH9: 0 | BJ9: 0 | BL9: 0 | BM9: 0 | BN9: 0 | BO9: 0 | BQ9: 0 | BS9: 0 | BT9: 0 | BU9: 0 | BV9: 0 | BX9: 0 | EC9: 1404 | ED9: 1404
A10: ОУП.00 | B10: Обязательный учебные предметы | D10: 3 | E10: 4 | F10: 6 | J10: 14 | L10: 1134 | M10: 0 | N10: 378 | O10: 0 | P10: 756 | Q10: 628 | R10: 128 | U10: 264 | V10: 88 | W10: 176 | X10: 160 | Y10: 16 | Z10: 0 | AA10: 0 | AB10: 330 | AC10: 110 | AD10: 220 | AE10: 180 | AF10: 40 | AG10: 0 | AH10: 0 | AI10: 240 | AJ10: 80 | AK10: 160 | AL10: 128 | AM10: 32 | AN10: 0 | AO10: 0 | AP10: 300 | AQ10: 100 | AR10: 200 | AS10: 160 | AT10: 40 | AU10: 0 | AV10: 0 | AW10: 0 | AX10: 0 | AY10: 0 | AZ10: 0 | BA10: 0 | BB10: 0 | BC10: 0 | BD10: 0 | BE10: 0 | BF10: 0 | BG10: 0 | BH10: 0 | BI10: 0 | BJ10: 0 | BK10: 0 | BL10: 0 | BM10: 0 | BN10: 0 | BO10: 0 | BP10: 0 | BQ10: 0 | BR10: 0 | BS10: 0 | BT10: 0 | BU10: 0 | BV10: 0 | BW10: 0 | BX10: 0 | BY10: 0 | BZ10: 0 | CA10: 0 | CB10: 0 | CC10: 0 | CD10: 0 | CE10: 0 | CF10: 0 | CG10: 0 | CH10: 0 | CI10: 0 | CJ10: 0 | CK10: 0 | CL10: 0 | CM10: 0 | CN10: 0 | CO10: 0 | CP10: 0 | CQ10: 0 | CR10: 0 | CS10: 0 | CT10: 0 | CU10: 0 | CV10: 0 | CW10: 0 | CX10: 0 | CY10: 0 | CZ10: 0 | DA10: 0 | DB10: 0 | DC10: 0 | DD10: 0 | DE10: 0 | DF10: 0 | DG10: 0 | DH10: 0 | DI10: 0 | DJ10: 0 | DK10: 0 | DL10: 0 | DM10: 0 | DN10: 0 | DO10: 0 | DP10: 0 | DQ10: 0 | DR10: 0 | DS10: 0 | DT10: 0 | DU10: 0 | DV10: 0 | DW10: 0 | DX10: 0 | DY10: 0 | DZ10: 0 | EA10: 0 | EB10: 0 | EC10: 756 | ED10: 756
A11: ОУП.01 | B11: Русский язык | C11: гр | D11: 4 | J11: 123 | L11: =N11+P11 -> 108 | N11: =V11+AC11+AJ11+AQ11+AX11+BE11+BL11+BS11 -> 36 | P11: =W11+AD11+AK11+AR11+AY11+BF11+BM11+BT11 -> 72 | Q11: 72 | R11: 0 | U11: 24 | V11: 8 | W11: 16 | X11: 16 | AB11: 30 | AC11: 10 | AD11: 20 | AE11: 20 | AI11: 24 | AJ11: 8 | AK11: 16 | AL11: 16 | AP11: 30 | AQ11: 10 | AR11: 20 | AS11: 20 | EC11: 128 | ED11: 128
A12: ОУП.02 | B12: Литература | C12: гр | D12: 4 | J12: 123 | L12: =N12+P12 -> 132 | N12: =V12+AC12+AJ12+AQ12+AX12+BE12+BL12+BS12 -> 44 | P12: 88 | Q12: 88 | R12: 0 | U12: 48 | V12: 16 | W12: 32 | X12: 32 | AB12: 30 | AC12: 10 | AD12: 20 | AE12: 20 | AI12: 48 | AJ12: 8 | AK12: 16 | AL12: 16 | AP12: 60 | AQ12: 10 | AR12: 20 | AS12: 20 | EC12: 40 | ED12: 40
A13: ОУП.03 | B13: Родная литература | C13: гр | J13: 4 | L13: 54 | N13: 18 | P13: 36 | Q13: 36 | AJ13: 8 | AK13: 16 | AL13: 16 | AQ13: 10 | AR13: 20 | AS13: 20 | EC13: 68 | ED13: 68
A14: ОУП.04 | B14: Иностранный язык | C14: мг | F14: 34 | J14: 12 | L14: =N14+P14 -> 192 | N14: =V14+AC14+AJ14+AQ14+AX14+BE14+BL14+BS14 -> 64 | P14: =W14+AD14+AK14+AR14+AY14+BF14+BM14+BT14 -> 128 | Q14: =X14+AE14+AL14+AS14+AZ14+BG14+BN14+BU14 -> 0 | R14: =Y14+AF14+AM14+AT14+BA14+BH14+BO14+BV14 -> 128 | U14: 24 | V14: 8 | W14: 16 | Y14: 16 | AB14: 60 | AC14: 20 | AD14: 40 | AF14: 40 | AI14: 48 | AJ14: 16 | AK14: 32 | AM14: 32 | AP14: 60 | AQ14: 20 | AR14: 40 | AT14: 40 | EC14: 72 | ED14: 72
A15: ОУП.05 | B15: Обществознание | C15: гр | F15: 4 | L15: 60 | N15: 20 | P15: 40 | Q15: 40 | R15: 0 | AP15: 60 | AQ15: 20 | AR15: 40 | AS15: 40 | EC15: 36 | ED15: 36
A16: ОУП.06 | B16: Математика | C16: мг | D16: 3 | J16: 12 | L16: 102 | N16: 34 | P16: =W16+AD16+AK16+AR16+AY16+BF16+BM16+BT16 -> 68 | Q16: 68 | R16: 0 | U16: 24 | V16: 8 | W16: 16 | X16: 16 | AB16: 30 | AC16: 10 | AD16: 20 | AE16: 20 | AI16: 48 | AJ16: 16 | AK16: 32 | AL16: 32 | EC16: 144 | ED16: 144
A17: ОУП.07 | B17: Естествознание | C17: гр | F17: 2 | L17: =N17+P17 -> 108 | N17: =V17+AC17+AJ17+AQ17+AX17+BE17+BL17+BS17 -> 36 | P17: 72 | Q17: 72 | R17: 0 | U17: 48 | V17: 16 | W17: 32 | X17: 32 | AB17: 60 | AC17: 20 | AD17: 40 | AE17: 40 | EC17: 72 | ED17: 72
A18: ОУП.08 | B18: Астрономия | C18: гр | F18: 4 | J18: 3 | L18: =N18+P18 -> 54 | N18: =V18+AC18+AJ18+AQ18+AX18+BE18+BL18+BS18 -> 18 | P18: 36 | Q18: 36 | R18: 0 | AI18: 24 | AJ18: 8 | AK18: 16 | AL18: 16 | AP18: 30 | AQ18: 10 | AR18: 20 | AS18: 20 | EC18: 72 | ED18: 72
A19: ОУП.09 | B19: Основы безопасности и защита Родины | C19: гр | F19: 2 | J19: 1 | L19: 108 | N19: 36 | P19: 72 | Q19: 72 | R19: 0 | U19: 48 | V19: 16 | W19: 32 | X19: 32 | AB19: 60 | AC19: 20 | AD19: 40 | AE19: 40 | EC19: 124 | ED19: 124
A20: ОУП.10 | B20: Физическая культура | C20: гр | L20: 216 | N20: 72 | P20: 144 | Q20: 144 | R20: 0 | U20: 48 | V20: 16 | W20: 32 | X20: 32 | AB20: 60 | AC20: 20 | AD20: 40 | AE20: 40 | AI20: 48 | AJ20: 16 | AK20: 32 | AL20: 32 | AP20: 60 | AQ20: 20 | AR20: 40 | AS20: 40 | EC20: 144
A21: ПУП.00 | B21: Профильные учебные предметы | D21: 8 | F21: 1 | G21: =LEN(#REF!)+LEN(#REF!)+LEN(G26)+LEN(#REF!)+LEN(#REF!)+LEN(#REF!)+LEN(G27) ->  | H21: =LEN(#REF!)+LEN(#REF!)+LEN(H26)+LEN(#REF!)+LEN(#REF!)+LEN(#REF!)+LEN(H27) ->  | I21: =LEN(#REF!)+LEN(#REF!)+LEN(I26)+LEN(#REF!)+LEN(#REF!)+LEN(#REF!)+LEN(I27) ->  | J21: 7 | L21: 972 | M21: =SUM(M21:M27) -> 0 | N21: 324 | O21: =SUM(O21:O27) -> 0 | P21: 648 | Q21: 648 | R21: =SUM(R21:R27) -> 0 | U21: 240 | V21: 80 | W21: 160 | X21: 160 | Y21: =SUM(Y21:Y27) -> 0 | Z21: =SUM(Z21:Z27) -> 0 | AA21: =SUM(AA21:AA27) -> 0 | AB21: =SUM(AB21:AB27) -> 360 | AC21: 100 | AD21: 200 | AE21: 200 | AF21: =SUM(AF21:AF27) -> 0 | AG21: =SUM(AG21:AG27) -> 0 | AH21: =SUM(AH21:AH27) -> 0 | AI21: =SUM(AI21:AI27) -> 192 | AJ21: 40 | AK21: 80 | AL21: 80 | AM21: =SUM(AM21:AM27) -> 0 | AN21: =SUM(AN21:AN27) -> 0 | AO21: =SUM(AO21:AO27) -> 0 | AP21: =SUM(AP21:AP27) -> 240 | AQ21: 50 | AR21: 100 | AS21: 100 | AT21: =SUM(AT21:AT27) -> 0 | AU21: 0 | AV21: 0 | AW21: 72 | AX21: 24 | AY21: 48 | AZ21: 48 | BA21: 0 | BB21: 0 | BC21: 0 | BD21: 90 | BE21: 30 | BF21: 60 | BG21: 60 | BH21: 0 | BI21: 0 | BJ21: 0 | BK21: 0 | BL21: 0 | BM21: 0 | BN21: 0 | BO21: 0 | BP21: 0 | BQ21: 0 | BR21: 0 | BS21: 0 | BT21: 0 | BU21: 0 | BV21: 0 | BW21: 0 | BX21: 0 | BY21: 0 | BZ21: =SUM(BZ21:BZ27) -> 0 | CA21: 0 | CB21: 0 | CC21: 0 | CD21: 0 | CE21: 0 | CF21: 0 | CG21: 0 | CH21: 0 | CI21: 0 | CJ21: 0 | CK21: 0 | CL21: 0 | CM21: 0 | CN21: 0 | CO21: 0 | CP21: 0 | CQ21: 0 | CR21: 0 | CS21: 0 | CT21: 0 | CU21: 0 | CV21: 0 | CW21: 0 | CX21: 0 | CY21: 0 | CZ21: 0 | DA21: 0 | DB21: 0 | DC21: 0 | DD21: 0 | DE21: 0 | DF21: =SUM(DF21:DF27) -> 0 | DG21: 0 | DH21: 0 | DI21: 0 | DJ21: 0 | DK21: 0 | DL21: 0 | DM21: 0 | DN21: 0 | DO21: 0 | DP21: 0 | DQ21: 0 | DR21: 0 | DS21: 0 | DT21: 0 | DU21: 0 | DV21: 0 | DW21: 0 | DX21: 0 | DY21: 0 | DZ21: 0 | EA21: 0 | EB21: 0 | EC21: 648 | ED21: =SUM(ED21:ED27) -> 0
A22: ПУП.01 | B22: История мировой культуры | C22: гр | F22: 4 | J22: 123 | L22: =N22+P22 -> 216 | N22: =V22+AC22+AJ22+AQ22+AX22+BE22+BL22+BS22 -> 72 | P22: =W22+AD22+AK22+AR22+AY22+BF22+BM22+BT22 -> 144 | Q22: 144 | R22: 0 | U22: 48 | V22: 16 | W22: 32 | X22: 32 | AB22: 60 | AC22: 20 | AD22: 40 | AE22: 40 | AI22: 48 | AJ22: 16 | AK22: 32 | AL22: 32 | AP22: 60 | AQ22: 20 | AR22: 40 | AS22: 40 | EC22: 144
A23: ПУП.02 | B23: История | C23: гр | D23: 2 | J23: 1 | L23: =N23+P23 -> 216 | N23: =V23+AC23+AJ23+AQ23+AX23+BE23+BL23+BS23 -> 72 | P23: =W23+AD23+AK23+AR23+AY23+BF23+BM23+BT23 -> 144 | Q23: =X23+AE23+AL23+AS23+AZ23+BG23+BN23+BU23 -> 144 | R23: =Y23+AF23+AM23+AT23+BA23+BH23+BO23+BV23 -> 0 | U23: 96 | V23: 32 | W23: 64 | X23: 64 | AB23: 120 | AC23: 40 | AD23: 80 | AE23: 80 | EC23: 144
A24: ПУП.03 | B24: Народная музыкальная культура | C24: гр | D24: 2 | J24: 1 | L24: =N24+P24 -> 54 | N24: =V24+AC24+AJ24+AQ24+AX24+BE24+BL24+BS24 -> 18 | P24: =W24+AD24+AK24+AR24+AY24+BF24+BM24+BT24 -> 36 | Q24: 36 | R24: 0 | U24: 24 | V24: 8 | W24: 16 | X24: 16 | AB24: 30 | AC24: 10 | AD24: 20 | AE24: 20 | EC24: 36
A25: ПУП.04 | B25: Музыкальная литература (зарубежная и отечественная) | C25: мг | D25: 1246 | J25: 35 | L25: 486 | N25: 162 | P25: 324 | Q25: 324 | R25: 0 | U25: 72 | V25: 24 | W25: 48 | X25: 48 | AB25: 90 | AC25: 30 | AD25: 60 | AE25: 60 | AI25: 72 | AJ25: 24 | AK25: 48 | AL25: 48 | AP25: 90 | AQ25: 30 | AR25: 60 | AS25: 60 | AW25: 72 | AX25: 24 | AY25: 48 | AZ25: 48 | BD25: 90 | BE25: 30 | BF25: 60 | BG25: 60 | EC25: 324
B26: час/нед | U26: 22,6 | W26: =(W27+W33+W65)/16 -> 15 | AB26: 22.5 | AD26: =(AD27+AD33+AD65)/20 -> 15 | AI26: 30.8 | AK26: =(AK27+AK33+AK65)/16 -> 21 | AP26: 31.5 | AR26: =(AR27+AR33+AR65)/20 -> 21 | AW26: 49.2 | AY26: =(AY27+AY33+AY65)/16 -> 33 | BD26: 50.2 | BF26: =(BF27+BF33+BF65)/20 -> 33 | BK26: 53.9 | BM26: =(BM27+BM33+BM65)/16 -> 36 | BR26: 54 | BT26: =(BT27+BT33+BT65)/19 -> 36 | BY26: NaN | CA26: NaN | CF26: NaN | CH26: NaN | CM26: NaN | CO26: NaN | CT26: NaN | CV26: NaN | DA26: NaN | DC26: NaN | DH26: NaN | DJ26: NaN | DO26: NaN | DQ26: NaN | DV26: NaN | DX26: NaN
A27: ОГСЭ.00 | B27: Общий гуманитарный и социально-экономический цикл | D27: =LEN(D28)+LEN(D29)+LEN(D30)+LEN(D31)+LEN(D32) -> 1 | E27: =LEN(E28)+LEN(E29)+LEN(E30)+LEN(E31)+LEN(E32) -> 3 | F27: 3 | G27: 0 | H27: 0 | I27: 0 | J27: 3 | L27: =SUM(L28:L32) -> 531 | M27: =SUM(M28:M32) -> 0 | N27: 177 | O27: 0 | P27: 354 | Q27: 192 | R27: 162 | V27: =SUM(V28:V32) -> 0 | W27: 0 | X27: 0 | Y27: 0 | Z27: 0 | AA27: 0 | AB27: 0 | AC27: 0 | AD27: 0 | AE27: 0 | AF27: 0 | AG27: 0 | AH27: 0 | AI27: 59 | AJ27: 24 | AK27: 48 | AL27: 48 | AM27: 0 | AN27: 0 | AO27: 0 | AP27: 0 | AQ27: 0 | AR27: 0 | AS27: 0 | AT27: 0 | AU27: 0 | AV27: 0 | AW27: 167 | AX27: 56 | AY27: 112 | AZ27: 48 | BA27: 64 | BB27: 0 | BC27: 0 | BD27: 108 | BE27: 30 | BF27: 60 | BG27: 0 | BH27: 60 | BI27: 0 | BJ27: 0 | BK27: 145 | BL27: 48 | BM27: 96 | BN27: 96 | BO27: 0 | BP27: 0 | BQ27: 0 | BR27: 52 | BS27: 19 | BT27: 38 | BU27: 0 | BV27: 38 | BW27: 0 | BX27: 0 | BY27: 0 | BZ27: 0 | CA27: 0 | CB27: 0 | CC27: 0 | CD27: 0 | CE27: 0 | CF27: 0 | CG27: 0 | CH27: =SUM(CH28:CH32) -> 0 | CI27: 0 | CJ27: 0 | CK27: 0 | CL27: 0 | CM27: 0 | CN27: 0 | CO27: 0 | CP27: 0 | CQ27: 0 | CR27: 0 | CS27: 0 | CT27: 0 | CU27: 0 | CV27: 0 | CW27: 0 | CX27: 0 | CY27: 0 | CZ27: 0 | DA27: 0 | DB27: 0 | DC27: 0 | DD27: 0 | DE27: 0 | DF27: 0 | DG27: 0 | DH27: 0 | DI27: 0 | DJ27: 0 | DK27: 0 | DL27: 0 | DM27: 0 | DN27: 0 | DO27: 0 | DP27: 0 | DQ27: 0 | DR27: 0 | DS27: 0 | DT27: 0 | DU27: 0 | DV27: 0 | DW27: 0 | DX27: 0 | DY27: 0 | DZ27: 0 | EA27: 0 | EB27: 0 | EC27: =SUM(EC28:EC32) -> 354 | ED27: =SUM(ED28:ED32) -> 354 | EE27: =SUM(EE28:EE32) -> 0
A28: ОГСЭ.01. | B28: Основы философии | C28: гр | F28: 5 | L28: 72 | N28: 24 | P28: =W28+AD28+AK28+AR28+AY28+BF28+BM28+BT28 -> 48 | Q28: 48 | R28: 0 | AW28: 59 | AX28: 24 | AY28: 48 | AZ28: 48 | EC28: 48 | ED28: 48
A29: ОГСЭ.02. | B29: История | C29: гр | D29: 3 | L29: 72 | N29: 24 | P29: 48 | Q29: 48 | R29: 0 | AI29: 59 | AJ29: 24 | AK29: 48 | AL29: 48 | EC29: 48 | ED29: 48
A30: ОГСЭ.03. | B30: Психология общения | C30: гр | F30: 7 | L30: 72 | N30: 24 | P30: 48 | Q30: 48 | R30: 0 | BK30: 59 | BL30: 24 | BM30: 48 | BN30: 48 | EC30: 48 | ED30: 48
A31: ОГСЭ.04. | B31: Иностранный язык | C31: мг | F31: 8 | J31: 567 | L31: 159 | N31: 53 | P31: 106 | Q31: 16 | R31: 90 | AW31: 44 | AX31: 16 | AY31: 32 | BA31: 32 | BD31: 28 | BE31: 10 | BF31: 20 | BH31: 20 | BK31: 22 | BL31: 8 | BM31: 16 | BN31: 16 | BR31: 52 | BS31: 19 | BT31: 38 | BV31: 38 | EC31: 106 | ED31: 106
A32: ОГСЭ.05. | B32: Физическая культура | C32: гр | E32: 567 | L32: =N32+P32 -> 156 | N32: 52 | P32: 104 | Q32: 32 | R32: 72 | AW32: 64 | AX32: 16 | AY32: 32 | BA32: 32 | BD32: 80 | BE32: 20 | BF32: 40 | BH32: 40 | BK32: 64 | BL32: 16 | BM32: 32 | BN32: 32 | EC32: 104 | ED32: 104
A33: П | B33: Профессиональный цикл | D33: =D34+D43 ->  | E33: =E34+E43 ->  | F33: =F34+F43 ->  | J33: =J34+J43 -> 52 | L33: =L34+L43 -> 4059 | N33: =N34+N43 -> 1353 | P33: =P34+P43 -> 2706 | Q33: =Q34+Q43 -> 879 | R33: =R34+R43 -> 1827 | U33: 362 | V33: =V34+V43 -> 104 | W33: =W34+W43 -> 208 | X33: =X34+X43 -> 0 | Y33: =Y34+Y43 -> 208 | AA33: =AA34+AA43 -> 0 | AC33: =AC34+AC43 -> 120 | AD33: =AD34+AD43 -> 240 | AE33: =AE34+AE43 -> 0 | AF33: =AF34+AF43 -> 240 | AH33: =AH34+AH43 -> 0 | AJ33: =AJ34+AJ43 -> 120 | AK33: =AK34+AK43 -> 240 | AL33: =AL34+AL43 -> 48 | AM33: =AM34+AM43 -> 192 | AO33: =AO34+AO43 -> 0 | AQ33: =AQ34+AQ43 -> 170 | AR33: =AR34+AR43 -> 340 | AS33: =AS34+AS43 -> 40 | AT33: =AT34+AT43 -> 300 | AV33: =AV34+AV43 -> 0 | AX33: =AX34+AX43 -> 160 | AY33: =AY34+AY43 -> 320 | AZ33: =AZ34+AZ43 -> 154 | BA33: =BA34+BA43 -> 166 | BC33: =BC34+BC43 -> 0 | BE33: =BE34+BE43 -> 240 | BF33: =BF34+BF43 -> 480 | BG33: =BG34+BG43 -> 176 | BH33: =BH34+BH43 -> 304 | BJ33: =BJ34+BJ43 -> 0 | BL33: =BL34+BL43 -> 192 | BM33: =BM34+BM43 -> 384 | BN33: =BN34+BN43 -> 176 | BO33: =BO34+BO43 -> 208 | BQ33: =BQ34+BQ43 -> 0 | BS33: =BS34+BS43 -> 247 | BT33: =BT34+BT43 -> 494 | BU33: =BU34+BU43 -> 285 | BV33: =BV34+BV43 -> 209 | BX33: =BX34+BX43 -> 0 | ED33: =ED34+ED43 -> 2130 | EE33: =EE34+EE43 -> 576
A34: ОП.00 | B34: Общепрофессиональные учебныедисциплины | D34: =LEN(D35)+LEN(D36)+LEN(D37)+LEN(D38)+LEN(D39)+LEN(#REF!)+LEN(D40)+LEN(D41)+LEN(D42) ->  | E34: =LEN(E35)+LEN(E36)+LEN(E37)+LEN(E38)+LEN(E39)+LEN(#REF!)+LEN(E40)+LEN(E41)+LEN(E42) ->  | F34: =LEN(F35)+LEN(F36)+LEN(F37)+LEN(F38)+LEN(F39)+LEN(#REF!)+LEN(F40)+LEN(F41)+LEN(F42) ->  | J34: 15 | L34: =SUM(L35:L42) -> 1276 | N34: =SUM(N35:N42) -> 425 | P34: =SUM(P35:P42) -> 851 | Q34: =SUM(Q35:Q42) -> 281 | R34: =SUM(R35:R42) -> 570 | U34: 96 | V34: =SUM(V35:V42) -> 40 | W34: =SUM(W35:W42) -> 80 | X34: =SUM(X35:X42) -> 0 | Y34: =SUM(Y35:Y42) -> 80 | AA34: =SUM(AA35:AA42) -> 0 | AC34: =SUM(AC35:AC42) -> 50 | AD34: =SUM(AD35:AD42) -> 100 | AE34: =SUM(AE35:AE42) -> 0 | AF34: =SUM(AF35:AF42) -> 100 | AH34: =SUM(AH35:AH42) -> 0 | AJ34: =SUM(AJ35:AJ42) -> 32 | AK34: =SUM(AK35:AK42) -> 64 | AL34: =SUM(AL35:AL42) -> 0 | AM34: =SUM(AM35:AM42) -> 64 | AO34: =SUM(AO35:AO42) -> 0 | AQ34: =SUM(AQ35:AQ42) -> 40 | AR34: =SUM(AR35:AR42) -> 80 | AS34: =SUM(AS35:AS42) -> 0 | AT34: =SUM(AT35:AT42) -> 80 | AV34: =SUM(AV35:AV42) -> 0 | AX34: =SUM(AX35:AX42) -> 40 | AY34: =SUM(AY35:AY42) -> 80 | AZ34: =SUM(AZ35:AZ42) -> 16 | BA34: =SUM(BA35:BA42) -> 64 | BC34: =SUM(BC35:BC42) -> 0 | BE34: =SUM(BE35:BE42) -> 50 | BF34: =SUM(BF35:BF42) -> 100 | BG34: =SUM(BG35:BG42) -> 20 | BH34: =SUM(BH35:BH42) -> 80 | BJ34: =SUM(BJ35:BJ42) -> 0 | BL34: =SUM(BL35:BL42) -> 88 | BM34: =SUM(BM35:BM42) -> 176 | BN34: =SUM(BN35:BN42) -> 112 | BO34: =SUM(BO35:BO42) -> 64 | BQ34: =SUM(BQ35:BQ42) -> 0 | BS34: =SUM(BS35:BS42) -> 85 | BT34: =SUM(BT35:BT42) -> 171 | BU34: =SUM(BU35:BU42) -> 133 | BV34: =SUM(BV35:BV42) -> 38 | BX34: =SUM(BX35:BX42) -> 0 | ED34: =SUM(ED35:ED42) -> 815 | EE34: =SUM(EE35:EE42) -> 36
A35: ОП.01 | B35: Музыкальная литература (зарубежная и отечественная) | C35: мг | D35: 8 | J35: 7 | L35: =N35+P35 -> 157 | N35: =V35+AC35+AJ35+AQ35+AX35+BE35+BL35+BS35 -> 52 | O35: =V35+AC35+AJ35+AQ35+AX35+BE35+BL35+BS35 -> 52 | P35: =W35+AD35+AK35+AR35+AY35+BF35+BM35+BT35 -> 105 | Q35: =X35+AE35+AL35+AS35+AZ35+BG35+BN35+BU35 -> 105 | R35: =Y35+AF35+AM35+AT35+BA35+BH35+BO35+BV35 -> 0 | BK35: 72 | BL35: 24 | BM35: 48 | BN35: 48 | BR35: 85 | BS35: 28 | BT35: 57 | BU35: 57 | ED35: 105
A36: ОП.02 | B36: Сольфеджио | C36: мг | D36: 47 | F36: 28 | J36: 1356 | L36: =N36+P36 -> 429 | N36: =V36+AC36+AJ36+AQ36+AX36+BE36+BL36+BS36 -> 143 | O36: =V36+AC36+AJ36+AQ36+AX36+BE36+BL36+BS36 -> 143 | P36: 286 | Q36: =X36+AE36+AL36+AS36+AZ36+BG36+BN36+BU36 -> 0 | R36: =Y36+AF36+AM36+AT36+BA36+BH36+BO36+BV36 -> 286 | U36: 48 | V36: 16 | W36: 32 | Y36: 32 | AB36: 60 | AC36: 20 | AD36: 40 | AF36: 40 | AI36: 48 | AJ36: 16 | AK36: 32 | AM36: 32 | AP36: 60 | AQ36: 20 | AR36: 40 | AT36: 40 | AW36: 48 | AX36: 16 | AY36: 32 | BA36: 32 | BD36: 60 | BE36: 20 | BF36: 40 | BH36: 40 | BK36: 48 | BL36: 16 | BM36: 32 | BO36: 32 | BS36: 19 | BT36: 38 | BV36: 38 | ED36: 286
B37: Индив.сольфеджио | C37: инд | J37: 1246 | L37: 54 | N37: 18 | O37: 18 | P37: =W37+AD37+AK37+AR37+AY37+BF37+BM37+BT37 -> 36 | Q37: 0 | R37: 36 | V37: 8 | W37: 16 | Y37: 16 | AC37: 10 | AD37: 20 | AF37: 20 | EE37: 36
A38: ОП.03 | B38: Элементарная теория музыки | C38: мг | D38: 2 | F38: 1 | L38: 108 | N38: 36 | O38: 36 | P38: 72 | Q38: 0 | R38: 72 | U38: 48 | V38: 16 | W38: 32 | Y38: 32 | AB38: 60 | AC38: 20 | AD38: 40 | AF38: 40 | ED38: 72
A39: ОП.04 | B39: Гармония | C39: мг | D39: 57 | J39: 346 | L39: 264 | N39: 88 | O39: 88 | P39: 176 | Q39: 0 | R39: 176 | AI39: 48 | AJ39: 16 | AK39: 32 | AM39: 32 | AP39: 60 | AQ39: 20 | AR39: 40 | AT39: 40 | AW39: 48 | AX39: 16 | AY39: 32 | BA39: 32 | BD39: 60 | BE39: 20 | BF39: 40 | BH39: 40 | BK39: 48 | BL39: 16 | BM39: 32 | BO39: 32 | ED39: 176
A40: ОП.05 | B40: Анализ музыкальных произведений | C40: мг | F40: 8 | L40: 57 | N40: 19 | O40: 19 | P40: 38 | Q40: 38 | R40: 0 | BK40: 48 | BR40: 57 | BS40: 19 | BT40: 38 | BU40: 38 | ED40: 38
A41: ОП.06 | B41: Музыкальная информатика | C41: мг | F41: 8 | J41: 7 | L41: 105 | N41: 35 | O41: 35 | P41: 70 | Q41: 70 | R41: 0 | AI41: 48 | AP41: 60 | BL41: 16 | BM41: 32 | BN41: 32 | BS41: 19 | BT41: 38 | BU41: 38 | ED41: 70
A42: ОП.07 | B42: Безопасность жизнедеятельности | C42: гр | F42: 7 | J42: 56 | L42: 102 | N42: 34 | O42: 34 | P42: 68 | Q42: 68 | R42: 0 | AW42: 18 | AX42: 8 | AY42: 16 | AZ42: 16 | BD42: 22 | BE42: 10 | BF42: 20 | BG42: 20 | BK42: 36 | BL42: 16 | BM42: 32 | BN42: 32 | ED42: 68
A43: ПМ | B43: Профессиональные модули | D43: =D44+D55 -> 13 | E43: =E44+E55 -> 1 | F43: =F44+F55 -> 3 | J43: =J44+J55 -> 37 | L43: =L44+L55 -> 2783 | N43: =N44+N55 -> 928 | P43: =P44+P55 -> 1855 | Q43: =Q44+Q55 -> 598 | R43: =R44+R55 -> 1257 | U43: 266 | V43: =V44+V55 -> 64 | W43: =W44+W55 -> 128 | X43: =X44+X55 -> 0 | Y43: =Y44+Y55 -> 128 | AA43: =AA44+AA55 -> 0 | AC43: =AC44+AC55 -> 70 | AD43: =AD44+AD55 -> 140 | AE43: =AE44+AE55 -> 0 | AF43: =AF44+AF55 -> 140 | AH43: =AH44+AH55 -> 0 | AJ43: =AJ44+AJ55 -> 88 | AK43: =AK44+AK55 -> 176 | AL43: =AL44+AL55 -> 48 | AM43: =AM44+AM55 -> 128 | AO43: =AO44+AO55 -> 0 | AQ43: =AQ44+AQ55 -> 130 | AR43: =AR44+AR55 -> 260 | AS43: =AS44+AS55 -> 40 | AT43: =AT44+AT55 -> 220 | AV43: =AV44+AV55 -> 0 | AX43: =AX44+AX55 -> 120 | AY43: =AY44+AY55 -> 240 | AZ43: =AZ44+AZ55 -> 138 | BA43: =BA44+BA55 -> 102 | BC43: =BC44+BC55 -> 0 | BE43: =BE44+BE55 -> 190 | BF43: =BF44+BF55 -> 380 | BG43: =BG44+BG55 -> 156 | BH43: =BH44+BH55 -> 224 | BJ43: =BJ44+BJ55 -> 0 | BL43: =BL44+BL55 -> 104 | BM43: =BM44+BM55 -> 208 | BN43: =BN44+BN55 -> 64 | BO43: =BO44+BO55 -> 144 | BQ43: =BQ44+BQ55 -> 0 | BS43: =BS44+BS55 -> 162 | BT43: =BT44+BT55 -> 323 | BU43: =BU44+BU55 -> 152 | BV43: =BV44+BV55 -> 171 | BX43: =BX44+BX55 -> 0 | ED43: =ED44+ED55 -> 1315 | EE43: =EE44+EE55 -> 540
A44: ПМ.01 | B44: Исполнительская деятельность | D44: =LEN(D45)+LEN(D46)+LEN(D48)+LEN(D49)+LEN(D50)+LEN(D51)+LEN(D52)+LEN(D53)+LEN(D54) -> 11 | E44: =LEN(E45)+LEN(E46)+LEN(E48)+LEN(E49)+LEN(E50)+LEN(E51)+LEN(E52)+LEN(E53)+LEN(E54) -> 0 | F44: =LEN(F45)+LEN(F46)+LEN(F48)+LEN(F49)+LEN(F50)+LEN(F51)+LEN(F52)+LEN(F53)+LEN(F54) -> 1 | J44: =LEN(J45)+LEN(J46)+LEN(J48)+LEN(J49)+LEN(J50)+LEN(J51)+LEN(J52)+LEN(J53)+LEN(J54) -> 25 | L44: =SUM(L45:L54) -> 2006 | N44: =SUM(N45:N54) -> 669 | P44: =SUM(P45:P54) -> 1337 | Q44: =SUM(Q45:Q54) -> 149 | R44: =SUM(R45:R54) -> 1188 | U44: 98 | V44: =SUM(V45:V54) -> 64 | W44: =SUM(W45:W54) -> 128 | X44: =SUM(X45:X54) -> 0 | Y44: =SUM(Y45:Y54) -> 128 | AA44: =SUM(AA45:AA54) -> 0 | AC44: =SUM(AC45:AC54) -> 70 | AD44: =SUM(AD45:AD54) -> 140 | AE44: =SUM(AE45:AE54) -> 0 | AF44: =SUM(AF45:AF54) -> 140 | AH44: =SUM(AH45:AH54) -> 0 | AJ44: =SUM(AJ45:AJ54) -> 64 | AK44: =SUM(AK45:AK54) -> 128 | AL44: =SUM(AL45:AL54) -> 0 | AM44: =SUM(AM45:AM54) -> 128 | AO44: =SUM(AO45:AO54) -> 0 | AQ44: =SUM(AQ45:AQ54) -> 100 | AR44: =SUM(AR45:AR54) -> 200 | AS44: =SUM(AS45:AS54) -> 0 | AT44: =SUM(AT45:AT54) -> 200 | AV44: =SUM(AV45:AV54) -> 0 | AX44: =SUM(AX45:AX54) -> 64 | AY44: =SUM(AY45:AY54) -> 128 | AZ44: =SUM(AZ45:AZ54) -> 32 | BA44: =SUM(BA45:BA54) -> 96 | BC44: =SUM(BC45:BC54) -> 0 | BE44: =SUM(BE45:BE54) -> 130 | BF44: =SUM(BF45:BF54) -> 260 | BG44: =SUM(BG45:BG54) -> 60 | BH44: =SUM(BH45:BH54) -> 200 | BJ44: =SUM(BJ45:BJ54) -> 0 | BL44: =SUM(BL45:BL54) -> 72 | BM44: =SUM(BM45:BM54) -> 144 | BN44: =SUM(BN45:BN54) -> 0 | BO44: =SUM(BO45:BO54) -> 144 | BQ44: =SUM(BQ45:BQ54) -> 0 | BS44: =SUM(BS45:BS54) -> 105 | BT44: =SUM(BT45:BT54) -> 209 | BU44: =SUM(BU45:BU54) -> 57 | BV44: =SUM(BV45:BV54) -> 152 | BX44: =SUM(BX45:BX54) -> 0 | ED44: =SUM(ED45:ED54) -> 875 | EE44: =SUM(EE45:EE54) -> 462
A45: МДК.01.01. | B45: Специальный инструмент | C45: инд | D45: 23456 | J45: 178 | L45: =N45+P45 -> 732 | N45: =V45+AC45+AJ45+AQ45+AX45+BE45+BL45+BS45 -> 244 | O45: =V45+AC45+AJ45+AQ45+AX45+BE45+BL45+BS45 -> 244 | P45: =W45+AD45+AK45+AR45+AY45+BF45+BM45+BT45 -> 488 | Q45: =X45+AE45+AL45+AS45+AZ45+BG45+BN45+BU45 -> 0 | R45: =Y45+AF45+AM45+AT45+BA45+BH45+BO45+BV45 -> 488 | U45: 74 | V45: 24 | W45: 48 | Y45: 48 | AB45: 91 | AC45: 30 | AD45: 60 | AF45: 60 | AI45: 74 | AJ45: 24 | AK45: 48 | AM45: 48 | AP45: 91 | AQ45: 40 | AR45: 80 | AT45: 80 | AW45: 73 | AX45: 24 | AY45: 48 | BA45: 48 | BD45: 91 | BE45: 40 | BF45: 80 | BH45: 80 | BK45: 73 | BL45: 24 | BM45: 48 | BO45: 48 | BR45: 87 | BS45: 38 | BT45: 76 | BV45: 76 | ED45: 429 | EE45: 59
A46: МДК.01.02. | B46: Ансамблевое исполнительство | C46: мг | D46: 6 | F46: 8 | J46: 3457 | L46: =N46+P46 -> 160 | N46: =V46+AC46+AJ46+AQ46+AX46+BE46+BL46+BS46 -> 53 | O46: =V46+AC46+AJ46+AQ46+AX46+BE46+BL46+BS46 -> 53 | P46: =W46+AD46+AK46+AR46+AY46+BF46+BM46+BT46 -> 107 | Q46: =X46+AE46+AL46+AS46+AZ46+BG46+BN46+BU46 -> 0 | R46: =Y46+AF46+AM46+AT46+BA46+BH46+BO46+BV46 -> 107 | AI46: 24 | AJ46: 8 | AK46: 16 | AM46: 16 | AP46: 30 | AQ46: 10 | AR46: 20 | AT46: 20 | AW46: 24 | AX46: 8 | AY46: 16 | BA46: 16 | BD46: 30 | BE46: 10 | BF46: 20 | BH46: 20 | BK46: 24 | BL46: 8 | BM46: 16 | BO46: 16 | BR46: 28 | BS46: 9 | BT46: 19 | BV46: 19 | ED46: 107
B47: Оркестровый класс: ансамбль | C47: ГР | J47: 12347 | L47: =N47+P47 -> 366 | N47: =V47+AC47+AJ47+AQ47+AX47+BE47+BL47+BS47 -> 122 | O47: =V47+AC47+AJ47+AQ47+AX47+BE47+BL47+BS47 -> 122 | P47: =W47+AD47+AK47+AR47+AY47+BF47+BM47+BT47 -> 244 | Q47: =X47+AE47+AL47+AS47+AZ47+BG47+BN47+BU47 -> 0 | R47: =Y47+AF47+AM47+AT47+BA47+BH47+BO47+BV47 -> 244 | V47: 32 | W47: 64 | Y47: 64 | AC47: 30 | AD47: 60 | AF47: 60 | AJ47: 24 | AK47: 48 | AM47: 48 | AQ47: 20 | AR47: 40 | AT47: 40 | BL47: 16 | BM47: 32 | BO47: 32 | EE47: 244
B48: Камерный ансамбль | C48: инд | J48: 468 | L48: 88 | N48: 29 | O48: 29 | P48: 59 | Q48: 0 | R48: 59 | AQ48: 10 | AR48: 20 | AT48: 20 | BE48: 10 | BF48: 20 | BH48: 20 | BS48: 9 | BT48: 19 | BV48: 19 | EE48: 59
A49: МДК.01.03. | B49: Дирижирование,чтение оркестровых партитур: чтение оркестровых партитур | C49: инд | D49: 68 | J49: 57 | L49: 107 | N49: 36 | O49: 36 | P49: 71 | Q49: 0 | R49: 71 | AW49: 24 | AX49: 8 | AY49: 16 | BA49: 16 | BD49: 30 | BE49: 10 | BF49: 20 | BH49: 20 | BK49: 24 | BL49: 8 | BM49: 16 | BO49: 16 | BR49: 28 | BS49: 10 | BT49: 19 | BV49: 19 | ED49: 71
B50: Дирижирование,чтение оркестровых партитур: дирижирование | C50: инд | J50: 78 | L50: 143 | N50: 48 | O50: 48 | P50: 95 | Q50: 0 | R50: 95 | AQ50: 10 | AR50: 20 | AT50: 20 | AW50: 24 | BE50: 20 | BF50: 40 | BH50: 40 | BK50: 24 | BL50: 8 | BM50: 16 | BO50: 16 | BR50: 28 | BS50: 10 | BT50: 19 | BV50: 19 | ED50: 35 | EE50: 60
A51: МДК.01.04. | B51: Дополнительный инструмент-фортепиано | C51: инд | D51: 57 | J51: 12346 | L51: 186 | N51: 62 | O51: 62 | P51: 124 | Q51: 0 | R51: 124 | V51: 8 | W51: 16 | Y51: 16 | AC51: 10 | AD51: 20 | AF51: 20 | AJ51: 8 | AK51: 16 | AM51: 16 | AQ51: 10 | AR51: 20 | AT51: 20 | AW51: 24 | AX51: 8 | AY51: 16 | BA51: 16 | BE51: 10 | BF51: 20 | BH51: 20 | BK51: 24 | BL51: 8 | BM51: 16 | BO51: 16 | BR51: 28 | ED51: 124
A52: МДК.01.05. | B52: История исполнительского искусства, инструментоведение,изучение родственных инструментов: история исполнительского искусства | C52: мг | D52: 8 | J52: 56 | L52: 111 | N52: 37 | O52: 37 | P52: 74 | Q52: 74 | R52: 0 | AX52: 8 | AY52: 16 | AZ52: 16 | BE52: 10 | BF52: 20 | BG52: 20 | BK52: 48 | BR52: 57 | BS52: 19 | BT52: 38 | BU52: 38 | ED52: 74
B53: История исполнительского искусства, инструментоведение,изучение родственных инструментов: изучение родственных инструментов | C53: инд. | J53: 568 | L53: 83 | N53: 28 | O53: 28 | P53: 55 | Q53: 55 | R53: 0 | AX53: 8 | AY53: 16 | AZ53: 16 | BE53: 10 | BF53: 20 | BG53: 20 | BR53: 57 | BS53: 10 | BT53: 19 | BU53: 19 | ED53: 35 | EE53: 20
B54: История исполнительского искусства, инструментоведение,изучение родственных инструментов: инструментоведение | C54: мг | J54: 6 | L54: 30 | N54: 10 | O54: 10 | P54: 20 | Q54: 20 | R54: 0 | BE54: 10 | BF54: 20 | BG54: 20 | BR54: 57 | EE54: 20
A55: ПМ.02 | B55: Педагогическая деятельность | D55: =LEN(D56)+LEN(D57)+LEN(D58)+LEN(D59)+LEN(D60)+LEN(D63)+LEN(D61)+LEN(D62)+LEN(D64) -> 2 | E55: =LEN(E56)+LEN(E57)+LEN(E58)+LEN(E59)+LEN(E60)+LEN(E63)+LEN(E61)+LEN(E62)+LEN(E64) -> 1 | F55: =LEN(F56)+LEN(F57)+LEN(F58)+LEN(F59)+LEN(F60)+LEN(F63)+LEN(F61)+LEN(F62)+LEN(F64) -> 2 | J55: =LEN(J56)+LEN(J57)+LEN(J58)+LEN(J59)+LEN(J60)+LEN(J63)+LEN(J61)+LEN(J62)+LEN(J64) -> 12 | L55: =SUM(L56:L64) -> 777 | N55: =SUM(N56:N64) -> 259 | P55: =SUM(P56:P64) -> 518 | Q55: =SUM(Q56:Q64) -> 449 | R55: =SUM(R56:R64) -> 69 | U55: 24 | V55: =SUM(V56:V64) -> 0 | W55: =SUM(W56:W64) -> 0 | X55: =SUM(X56:X64) -> 0 | Y55: =SUM(Y56:Y64) -> 0 | AA55: =SUM(AA56:AA64) -> 0 | AC55: =SUM(AC56:AC64) -> 0 | AD55: =SUM(AD56:AD64) -> 0 | AE55: =SUM(AE56:AE64) -> 0 | AF55: =SUM(AF56:AF64) -> 0 | AH55: =SUM(AH56:AH64) -> 0 | AJ55: =SUM(AJ56:AJ64) -> 24 | AK55: =SUM(AK56:AK64) -> 48 | AL55: =SUM(AL56:AL64) -> 48 | AM55: =SUM(AM56:AM64) -> 0 | AO55: =SUM(AO56:AO64) -> 0 | AQ55: =SUM(AQ56:AQ64) -> 30 | AR55: =SUM(AR56:AR64) -> 60 | AS55: =SUM(AS56:AS64) -> 40 | AT55: =SUM(AT56:AT64) -> 20 | AV55: =SUM(AV56:AV64) -> 0 | AX55: =SUM(AX56:AX64) -> 56 | AY55: =SUM(AY56:AY64) -> 112 | AZ55: =SUM(AZ56:AZ64) -> 106 | BA55: =SUM(BA56:BA64) -> 6 | BC55: =SUM(BC56:BC64) -> 0 | BE55: =SUM(BE56:BE64) -> 60 | BF55: =SUM(BF56:BF64) -> 120 | BG55: =SUM(BG56:BG64) -> 96 | BH55: =SUM(BH56:BH64) -> 24 | BJ55: =SUM(BJ56:BJ64) -> 0 | BL55: =SUM(BL56:BL64) -> 32 | BM55: =SUM(BM56:BM64) -> 64 | BN55: =SUM(BN56:BN64) -> 64 | BO55: =SUM(BO56:BO64) -> 0 | BQ55: =SUM(BQ56:BQ64) -> 0 | BS55: =SUM(BS56:BS64) -> 57 | BT55: =SUM(BT56:BT64) -> 114 | BU55: =SUM(BU56:BU64) -> 95 | BV55: =SUM(BV56:BV64) -> 19 | BX55: =SUM(BX56:BX64) -> 0 | ED55: =SUM(ED56:ED64) -> 440 | EE55: =SUM(EE56:EE64) -> 78
A56: МДК.02.01. | B56: Педагогические основы преподавания творческих дисциплин: основы педагогики | C56: гр | J56: 34 | L56: =N56+P56 -> 108 | N56: =V56+AC56+AJ56+AQ56+AX56+BE56+BL56+BS56 -> 36 | O56: =V56+AC56+AJ56+AQ56+AX56+BE56+BL56+BS56 -> 36 | P56: =W56+AD56+AK56+AR56+AY56+BF56+BM56+BT56 -> 72 | Q56: =X56+AE56+AL56+AS56+AZ56+BG56+BN56+BU56 -> 72 | R56: =Y56+AF56+AM56+AT56+BA56+BH56+BO56+BV56 -> 0 | AI56: 48 | AJ56: 16 | AK56: 32 | AL56: 32 | AP56: 60 | AQ56: 20 | AR56: 40 | AS56: 40 | ED56: 72
B57: Педагогические основы преподавания творческих дисциплин: основы системы музыкального образования | C57: гр | D57: 6 | J57: 5 | L57: =N57+P57 -> 108 | N57: =V57+AC57+AJ57+AQ57+AX57+BE57+BL57+BS57 -> 36 | O57: =V57+AC57+AJ57+AQ57+AX57+BE57+BL57+BS57 -> 36 | P57: =W57+AD57+AK57+AR57+AY57+BF57+BM57+BT57 -> 72 | Q57: =X57+AE57+AL57+AS57+AZ57+BG57+BN57+BU57 -> 72 | R57: =Y57+AF57+AM57+AT57+BA57+BH57+BO57+BV57 -> 0 | AW57: 48 | AX57: 16 | AY57: 32 | AZ57: 32 | BD57: 60 | BE57: 20 | BF57: 40 | BG57: 40 | ED57: 72
B58: Педагогические основы преподавания творческих дисциплин: возрастная психология | C58: гр | J58: 56 | L58: 54 | N58: 18 | O58: 18 | P58: 36 | Q58: 36 | R58: 0 | AW58: 24 | AX58: 8 | AY58: 16 | AZ58: 16 | BD58: 30 | BE58: 10 | BF58: 20 | BG58: 20 | ED58: 36
B59: Педагогические основы преподавания творческих ди сциплин: основы организации учебного процесса | C59: гр | J59: 7 | L59: 48 | N59: 16 | O59: 16 | P59: 32 | Q59: 32 | R59: 0 | BK59: 48 | BL59: 16 | BM59: 32 | BN59: 32 | ED59: 32
B60: Педагогические основы преподавания творческих дисциплин: основы психологии музыкального восприятия | C60: гр | F60: 8 | L60: 57 | N60: 19 | O60: 19 | P60: 38 | Q60: 38 | R60: 0 | BR60: 57 | BS60: 19 | BT60: 38 | BU60: 38 | ED60: 38
A61: МДК.02.02 | B61: Учебно-методическое обеспечение учебного процесса: методика обучения игре на инструменте | C61: мг | F61: 6 | J61: 58 | L61: 184 | N61: 61 | O61: 61 | P61: 123 | Q61: 113 | R61: 10 | AW61: 96 | AX61: 32 | AY61: 64 | AZ61: 58 | BA61: 6 | BD61: 60 | BE61: 20 | BF61: 40 | BG61: 36 | BH61: 4 | BS61: 9 | BT61: 19 | BU61: 19 | ED61: 104 | EE61: 19
B62: Учебно-методическое обеспечение учебного процесса: изучение методической литературы по вопросам педагогики и методики | C62: мг | D62: 7 | J62: 3 | L62: 72 | N62: 24 | O62: 24 | P62: 48 | Q62: 48 | R62: 0 | AI62: 24 | AJ62: 8 | AK62: 16 | AL62: 16 | BD62: 60 | BL62: 16 | BM62: 32 | BN62: 32 | ED62: 48
B63: Изучение репертуара ДШИ | C63: инд | J63: 468 | L63: =N63+P63 -> 89 | N63: =V63+AC63+AJ63+AQ63+AX63+BE63+BL63+BS63 -> 30 | O63: =V63+AC63+AJ63+AQ63+AX63+BE63+BL63+BS63 -> 30 | P63: =W63+AD63+AK63+AR63+AY63+BF63+BM63+BT63 -> 59 | Q63: =X63+AE63+AL63+AS63+AZ63+BG63+BN63+BU63 -> 0 | R63: =Y63+AF63+AM63+AT63+BA63+BH63+BO63+BV63 -> 59 | U63: 24 | AB63: 30 | AQ63: 10 | AR63: 20 | AT63: 20 | BE63: 10 | BF63: 20 | BH63: 20 | BS63: 10 | BT63: 19 | BV63: 19 | EE63: 59
B64: Учебно-методическое обеспечение учебногопроцесса: ритмика | C64: гр | E64: 8 | L64: 57 | N64: 19 | O64: 19 | P64: 38 | Q64: 38 | R64: 0 | BR64: 57 | BS64: 19 | BT64: 38 | BU64: 38 | ED64: 38
A65: УП | B65: Учебная практика | F65: 2 | J65: 8 | L65: =SUM(L66:L67) -> 1026 | N65: =SUM(N66:N67) -> 342 | P65: =SUM(P66:P67) -> 684 | Q65: =SUM(Q66:Q67) -> 0 | R65: =SUM(R66:R67) -> 684 | V65: =SUM(V66:V67) -> 16 | W65: =SUM(W66:W67) -> 32 | X65: =SUM(X66:X67) -> 0 | Y65: =SUM(Y66:Y67) -> 32 | AA65: =SUM(AA66:AA67) -> 0 | AC65: =SUM(AC66:AC67) -> 30 | AD65: =SUM(AD66:AD67) -> 60 | AE65: =SUM(AE66:AE67) -> 0 | AF65: =SUM(AF66:AF67) -> 60 | AH65: =SUM(AH66:AH67) -> 0 | AJ65: =SUM(AJ66:AJ67) -> 24 | AK65: =SUM(AK66:AK67) -> 48 | AL65: =SUM(AL66:AL67) -> 0 | AM65: =SUM(AM66:AM67) -> 48 | AO65: =SUM(AO66:AO67) -> 0 | AQ65: =SUM(AQ66:AQ67) -> 40 | AR65: =SUM(AR66:AR67) -> 80 | AS65: =SUM(AS66:AS67) -> 0 | AT65: =SUM(AT66:AT67) -> 80 | AV65: =SUM(AV66:AV67) -> 0 | AX65: =SUM(AX66:AX67) -> 48 | AY65: =SUM(AY66:AY67) -> 96 | AZ65: =SUM(AZ66:AZ67) -> 0 | BA65: =SUM(BA66:BA67) -> 96 | BC65: =SUM(BC66:BC67) -> 0 | BE65: =SUM(BE66:BE67) -> 60 | BF65: =SUM(BF66:BF67) -> 120 | BG65: =SUM(BG66:BG67) -> 0 | BH65: =SUM(BH66:BH67) -> 120 | BJ65: =SUM(BJ66:BJ67) -> 0 | BL65: =SUM(BL66:BL67) -> 48 | BM65: =SUM(BM66:BM67) -> 96 | BN65: =SUM(BN66:BN67) -> 0 | BO65: =SUM(BO66:BO67) -> 96 | BQ65: =SUM(BQ66:BQ67) -> 0 | BS65: =SUM(BS66:BS67) -> 76 | BT65: =SUM(BT66:BT67) -> 152 | BU65: =SUM(BU66:BU67) -> 0 | BV65: =SUM(BV66:BV67) -> 152 | BX65: =SUM(BX66:BX67) -> 0 | ED65: =SUM(ED66:ED67) -> 684 | EE65: =SUM(EE66:EE67) -> 0
A66: УП 01 | B66: Оркестр (ансамбль) | C66: гр. | F66: 56 | J66: 123478 | L66: =N66+P66 -> 921 | N66: =V66+AC66+AJ66+AQ66+AX66+BE66+BL66+BS66 -> 307 | O66: =V66+AC66+AJ66+AQ66+AX66+BE66+BL66+BS66 -> 307 | P66: 614 | Q66: 0 | R66: 614 | V66: 16 | W66: 32 | Y66: 32 | AC66: 30 | AD66: 60 | AF66: 60 | AJ66: 24 | AK66: 48 | AM66: 48 | AQ66: 40 | AR66: 80 | AT66: 80 | AX66: 48 | AY66: 96 | BA66: 96 | BE66: 60 | BF66: 120 | BH66: 120 | BL66: 32 | BM66: 64 | BO66: 64 | BS66: 57 | BT66: 114 | BV66: 114 | ED66: 614
A67: УП 02. | B67: Педагогическая работа | C67: инд | J67: 78 | L67: =N67+P67 -> 105 | N67: =V67+AC67+AJ67+AQ67+AX67+BE67+BL67+BS67 -> 35 | O67: 35 | P67: 70 | Q67: 0 | R67: 70 | BK67: 48 | BL67: 16 | BM67: 32 | BO67: 32 | BR67: 57 | BS67: 19 | BT67: 38 | BV67: 38 | ED67: 70
A68: ПП | B68: Производственная (по профилю специальности) практика | N68: час | P68: =P69+P70 -> 180 | Q68: нед | R68: =R69+R70 -> 5 | W68: =SUM(W69:W70) -> 20 | Y68: =SUM(Y69:Y70) -> 20 | AD68: =SUM(AD69:AD70) -> 25 | AF68: =SUM(AF69:AF70) -> 25 | AK68: =SUM(AK69:AK70) -> 20 | AM68: =SUM(AM69:AM70) -> 20 | AR68: =SUM(AR69:AR70) -> 25 | AT68: =SUM(AT69:AT70) -> 25 | AY68: =SUM(AY69:AY70) -> 20 | BA68: =SUM(BA69:BA70) -> 20 | BF68: =SUM(BF69:BF70) -> 25 | BH68: =SUM(BH69:BH70) -> 25 | BM68: =SUM(BM69:BM70) -> 20 | BO68: =SUM(BO69:BO70) -> 20 | BT68: =SUM(BT69:BT70) -> 25 | BV68: =SUM(BV69:BV70) -> 25 | BY68: час | CB68: нед | CF68: час | CI68: нед | CM68: час | CP68: нед | CT68: час | CW68: нед | DA68: час | DD68: нед | DH68: час | DK68: нед | DO68: час | DR68: нед | DV68: час | DY68: нед
A69: ПП.01 | B69: Исполнительская (по профилю специальности) | N69: час | P69: =W69+AD69+AK69+AR69+AY69+BF69+BM69+BT69 -> 144 | Q69: нед | R69: 4 | W69: 16 | Y69: 16 | AD69: 20 | AF69: 20 | AK69: 16 | AM69: 16 | AR69: 20 | AT69: 20 | AY69: 16 | BA69: 16 | BF69: 20 | BH69: 20 | BM69: 16 | BO69: 16 | BT69: 20 | BV69: 20
A70: ПП.02 | B70: Педагогическая практика | N70: час | P70: =W70+AD70+AK70+AR70+AY70+BF70+BM70+BT70 -> 36 | Q70: нед | R70: 1 | W70: 4 | Y70: 4 | AD70: 5 | AF70: 5 | AK70: 4 | AM70: 4 | AR70: 5 | AT70: 5 | AY70: 4 | BA70: 4 | BF70: 5 | BH70: 5 | BM70: 4 | BO70: 4 | BT70: 5 | BV70: 5
A71: ПДП.00 | B71: Преддипломная практика | N71: час | P71: =W71+AD71+AK71+AR71+AY71+BF71+BM71+BT71 -> 36 | Q71: нед | R71: 1 | BM71: 16 | BO71: 16 | BT71: 20 | BV71: 20
A72: ГИА.00 | B72: Государственная (итоговая) аттестация | Q72: нед | R72: 4 | BU72: нед | BV72: 4 | CB72: нед | CI72: нед | CP72: нед | CW72: нед | DD72: нед | DK72: нед | DR72: нед | DY72: нед
A73: ГИА.01 | B73: Подготовка выпускной квалификационной работы | Q73: нед | R73: 1 | BU73: нед | BV73: 1 | CB73: нед | CI73: нед | CP73: нед | CW73: нед | DD73: нед | DK73: нед | DR73: нед | DY73: нед
A74: ГИА.02 | B74: Защита выпускной квалификационной работы | Q74: нед | R74: 1 | BU74: нед | BV74: 1 | CB74: нед | CI74: нед | CP74: нед | CW74: нед | DD74: нед | DK74: нед | DR74: нед | DY74: нед
A75: ГИА.03 | B75: Подготовка к государственным экзаменам | Q75: нед | R75: 1 | BU75: нед | BV75: 1 | CB75: нед | CI75: нед | CP75: нед | CW75: нед | DD75: нед | DK75: нед | DR75: нед | DY75: нед
A76: ГИА.04 | B76: Проведение государственных экзаменов | Q76: нед | R76: 1 | BU76: нед | BV76: 1 | CB76: нед | CI76: нед | CP76: нед | CW76: нед | DD76: нед | DK76: нед | DR76: нед | DY76: нед
B77: ВСЕГО ПО ДИСЦИПЛИНАМ И МДК | D77: 29 | E77: =E9+E27+E34+E44+E55+E65 ->  | F77: 27 | J77: 96 | L77: =SUM(L9,L27,L34,L44,L55,L65) -> 7722 | N77: =SUM(N9,N27,N34,N44,N55,N65) -> 2574 | P77: =SUM(P9,P27,P34,P44,P55,P65) -> 5148 | Q77: =SUM(Q9,Q27,Q34,Q44,Q55,Q65) -> 2347 | R77: =SUM(R9,R27,R34,R44,R55,R65) -> 2801 | ED77: 4572 | EE77: 576
B78: Экзаменов | U78: 1 | X78: 1 | AB78: 5 | AE78: 5 | AI78: 3 | AL78: 3 | AP78: 5 | AS78: 5 | AW78: 3 | AZ78: =SUM(IF(IFERROR(MID(#REF!,SEARCH(5,#REF!),1),0)="5",1,0),IF(IFERROR(MID(#REF!,SEARCH(5,#REF!),1),0)="5",1,0),IF(IFERROR(MID(D28:D32,SEARCH(5,D28:D32),1),0)="5",1,0),IF(IFERROR(MID(D35:D42,SEARCH(5,D35:D42),1),0)="5",1,0),IF(IFERROR(MID(D45:D54,SEARCH(5,D45:D54),1),0)="5",1,0),IF(IFERROR(MID(D56:D64,SEARCH(5,D56:D64),1),0)="5",1,0),IF(IFERROR(MID(D66:D67,SEARCH(5,D66:D67),1),0)="5",1,0)) -> 3 | BD78: 4 | BG78: 5 | BK78: 4 | BN78: =SUM(IF(IFERROR(MID(#REF!,SEARCH(7,#REF!),1),0)="7",1,0),IF(IFERROR(MID(#REF!,SEARCH(7,#REF!),1),0)="7",1,0),IF(IFERROR(MID(D28:D32,SEARCH(7,D28:D32),1),0)="7",1,0),IF(IFERROR(MID(D35:D42,SEARCH(7,D35:D42),1),0)="7",1,0),IF(IFERROR(MID(D45:D54,SEARCH(7,D45:D54),1),0)="7",1,0),IF(IFERROR(MID(D56:D64,SEARCH(7,D56:D64),1),0)="7",1,0),IF(IFERROR(MID(D66:D67,SEARCH(7,D66:D67),1),0)="7",1,0)) -> 4 | BR78: 3 | BU78: =SUM(IF(IFERROR(MID(#REF!,SEARCH(8,#REF!),1),0)="8",1,0),IF(IFERROR(MID(#REF!,SEARCH(8,#REF!),1),0)="8",1,0),IF(IFERROR(MID(D28:D32,SEARCH(8,D28:D32),1),0)="8",1,0),IF(IFERROR(MID(D35:D42,SEARCH(8,D35:D42),1),0)="8",1,0),IF(IFERROR(MID(D45:D54,SEARCH(8,D45:D54),1),0)="8",1,0),IF(IFERROR(MID(D56:D64,SEARCH(8,D56:D64),1),0)="8",1,0),IF(IFERROR(MID(D66:D67,SEARCH(8,D66:D67),1),0)="8",1,0)) -> 3
B79: Зачётов | U79: 1 | X79: =SUM(IF(IFERROR(MID(#REF!,SEARCH(1,#REF!),1),0)="1",1,0),IF(IFERROR(MID(#REF!,SEARCH(1,#REF!),1),0)="1",1,0),IF(IFERROR(MID(E28:E32,SEARCH(1,E28:E32),1),0)="1",1,0),IF(IFERROR(MID(E35:E42,SEARCH(1,E35:E42),1),0)="1",1,0),IF(IFERROR(MID(E45:E54,SEARCH(1,E45:E54),1),0)="1",1,0),IF(IFERROR(MID(E56:E64,SEARCH(1,E56:E64),1),0)="1",1,0),IF(IFERROR(MID(E66:E67,SEARCH(1,E66:E67),1),0)="1",1,0)) -> 0 | Y79: 1 | AB79: 1 | AD79: 1 | AE79: =SUM(IF(IFERROR(MID(#REF!,SEARCH(2,#REF!),1),0)="2",1,0),IF(IFERROR(MID(#REF!,SEARCH(2,#REF!),1),0)="2",1,0),IF(IFERROR(MID(E28:E32,SEARCH(2,E28:E32),1),0)="2",1,0),IF(IFERROR(MID(E35:E42,SEARCH(2,E35:E42),1),0)="2",1,0),IF(IFERROR(MID(E45:E54,SEARCH(2,E45:E54),1),0)="2",1,0),IF(IFERROR(MID(E56:E64,SEARCH(2,E56:E64),1),0)="2",1,0),IF(IFERROR(MID(E66:E67,SEARCH(2,E66:E67),1),0)="2",1,0)) -> 0 | AI79: 1 | AL79: 1 | AP79: 1 | AS79: 1 | AW79: 1 | AZ79: =SUM(IF(IFERROR(MID(#REF!,SEARCH(5,#REF!),1),0)="5",1,0),IF(IFERROR(MID(#REF!,SEARCH(5,#REF!),1),0)="5",1,0),IF(IFERROR(MID(E28:E32,SEARCH(5,E28:E32),1),0)="5",1,0),IF(IFERROR(MID(E35:E42,SEARCH(5,E35:E42),1),0)="5",1,0),IF(IFERROR(MID(E45:E54,SEARCH(5,E45:E54),1),0)="5",1,0),IF(IFERROR(MID(E56:E64,SEARCH(5,E56:E64),1),0)="5",1,0),IF(IFERROR(MID(E66:E67,SEARCH(5,E66:E67),1),0)="5",1,0)) -> 1 | BD79: 1 | BG79: =SUM(IF(IFERROR(MID(#REF!,SEARCH(6,#REF!),1),0)="6",1,0),IF(IFERROR(MID(#REF!,SEARCH(6,#REF!),1),0)="6",1,0),IF(IFERROR(MID(E28:E32,SEARCH(6,E28:E32),1),0)="6",1,0),IF(IFERROR(MID(E35:E42,SEARCH(6,E35:E42),1),0)="6",1,0),IF(IFERROR(MID(E45:E54,SEARCH(6,E45:E54),1),0)="6",1,0),IF(IFERROR(MID(E56:E64,SEARCH(6,E56:E64),1),0)="6",1,0),IF(IFERROR(MID(E66:E67,SEARCH(6,E66:E67),1),0)="6",1,0)) -> 1 | BK79: 1 | BN79: =SUM(IF(IFERROR(MID(#REF!,SEARCH(7,#REF!),1),0)="7",1,0),IF(IFERROR(MID(#REF!,SEARCH(7,#REF!),1),0)="7",1,0),IF(IFERROR(MID(E28:E32,SEARCH(7,E28:E32),1),0)="7",1,0),IF(IFERROR(MID(E35:E42,SEARCH(7,E35:E42),1),0)="7",1,0),IF(IFERROR(MID(E45:E54,SEARCH(7,E45:E54),1),0)="7",1,0),IF(IFERROR(MID(E56:E64,SEARCH(7,E56:E64),1),0)="7",1,0),IF(IFERROR(MID(E66:E67,SEARCH(7,E66:E67),1),0)="7",1,0)) -> 1 | BR79: 1 | BU79: =SUM(IF(IFERROR(MID(#REF!,SEARCH(8,#REF!),1),0)="8",1,0),IF(IFERROR(MID(#REF!,SEARCH(8,#REF!),1),0)="8",1,0),IF(IFERROR(MID(E28:E32,SEARCH(8,E28:E32),1),0)="8",1,0),IF(IFERROR(MID(E35:E42,SEARCH(8,E35:E42),1),0)="8",1,0),IF(IFERROR(MID(E45:E54,SEARCH(8,E45:E54),1),0)="8",1,0),IF(IFERROR(MID(E56:E64,SEARCH(8,E56:E64),1),0)="8",1,0),IF(IFERROR(MID(E66:E67,SEARCH(8,E66:E67),1),0)="8",1,0)) -> 1
B80: Дифференицрованных зачётов | U80: 1 | X80: =SUM(IF(IFERROR(MID(#REF!,SEARCH(1,#REF!),1),0)="1",1,0),IF(IFERROR(MID(#REF!,SEARCH(1,#REF!),1),0)="1",1,0),IF(IFERROR(MID(F28:I32,SEARCH(1,F28:I32),1),0)="1",1,0),IF(IFERROR(MID(F35:F42,SEARCH(1,F35:F42),1),0)="1",1,0),IF(IFERROR(MID(F45:I54,SEARCH(1,F45:F54),1),0)="1",1,0),IF(IFERROR(MID(F56:F64,SEARCH(1,F56:G64),1),0)="1",1,0),IF(IFERROR(MID(F66:F67,SEARCH(1,F66:F67),1),0)="1",1,0)) -> 1 | AB80: 3 | AE80: 3 | AI80: 1 | AL80: 1 | AP80: 5 | AS80: 4 | AW80: 1 | AZ80: =SUM(IF(IFERROR(MID(#REF!,SEARCH(5,#REF!),1),0)="5",1,0),IF(IFERROR(MID(#REF!,SEARCH(5,#REF!),1),0)="5",1,0),IF(IFERROR(MID(F28:F32,SEARCH(5,F28:F32),1),0)="5",1,0),IF(IFERROR(MID(F35:I42,SEARCH(5,F35:I42),1),0)="5",1,0),IF(IFERROR(MID(F45:F54,SEARCH(5,F45:F54),1),0)="5",1,0),IF(IFERROR(MID(F56:F64,SEARCH(5,F56:F64),1),0)="5",1,0),IF(IFERROR(MID(F66:F67,SEARCH(5,F66:F67),1),0)="5",1,0)) -> 2 | BD80: 3 | BG80: 1 | BK80: 2 | BN80: =SUM(IF(IFERROR(MID(#REF!,SEARCH(7,#REF!),1),0)="7",1,0),IF(IFERROR(MID(#REF!,SEARCH(7,#REF!),1),0)="7",1,0),IF(IFERROR(MID(F28:F32,SEARCH(7,F28:F32),1),0)="7",1,0),IF(IFERROR(MID(F35:I42,SEARCH(7,F35:I42),1),0)="7",1,0),IF(IFERROR(MID(F45:F54,SEARCH(7,F45:F54),1),0)="7",1,0),IF(IFERROR(MID(F56:F64,SEARCH(7,F56:F64),1),0)="7",1,0),IF(IFERROR(MID(F66:F67,SEARCH(7,F66:F67),1),0)="7",1,0)) -> 2 | BR80: 6 | BU80: 5

Sheet Кабинеты
B1: № | C1: Наименование
B2: 1 | C2: Кабинеты: русского языка и литературы
B3: 2 | C3: математики и информатики;
B4: 3 | C4: истории, географии и обществознания;
B5: 4 | C5: гуманитарных и социально-экономических дисциплин;
B6: 5 | C6: мировой художественной культуры;
B7: 6 | C7: музыкально-теоретических дисциплин;
B8: 7 | C8: музыкальной литературы.
B9: 8 | C9: Учебные классы: для групповых и индивидуальных занятий;
B10: 9 | C10: для проведения оркестровых и ансамблевых занятий;
B11: 10 | C11: для занятий по междисциплинарному курсу «Оркестровый класс, изучение родственных инструментов» со специализированным оборудованием;
B12: 11 | C12: для занятий по междисциплинарному курсу «Дирижирование и чтение оркестровых партитур», оснащенные зеркалами и двумя роялями.
B13: 12 | C13: Спортивный комплекс: спортивный зал; место для стрельбы.
B14: 13 | C14: Залы: концертный зал от 100 посадочных мест с концертными роялями, пультами и звукотехническим оборудованием; малый концертный зал от 30 посадочных мест с концертным роялем, читальный зал с выходом в сеть

Sheet Лист1
